{"text_format":"2","workbook":"xlsx","n_sheets":1,"sheets":["Sheet1"],"not_rendered":{"charts":0,"images":0,"macros":0,"external_links":0,"defined_names":0,"comments":0,"pivot_tables":0},"unopened":[],"bounds":{"document_bytes":16777216,"sheet_cells":100000,"run_cost":"one","rows_first":2000,"rows_last":500,"rows_between":2000,"halvings":0,"cell_chars":16384,"cell_head_chars":4096},"cells_cut":0,"cells_raw":0,"read":"whole","date_system":"1900"}

{"sheet":"Sheet1","index":0,"n_rows":70,"n_cols":13,"rows_kept":70,"cut":false,"hidden":false,"merged":[]}
[null,"Calculations for Table 2/Fig. 10"]
[]
[null,"SKO"]
[]
[null,"POWER IN",null,"additional consumption of 3.74 g chow/day",null,null,null,3.3,"kCal/g chow",null,null,null,"Sampath et al 2009"]
[null,"FOOD INTAKE",null,"1W = 0.86 kCal/hour",null,null,null,{"$f":"H5*3.74","v":12.342000000000001},"additional kCal consumed/day"]
[{"$nulls":7},{"$f":"H6/24","v":0.51424999999999998},"additional kCal consumed/hour/mouse"]
[{"$nulls":7},{"$f":"H7/0.86","v":0.59796511627906979},"additional W consumed/SKO mouse"]
[]
[null,"POWER OUT/W",null,{"$f":"(46.2-31.2)","v":15.000000000000004},"kcal/h/kg","INCREASE in SKO",null,{"$f":"(46.2-31.2)*0.03","v":0.45000000000000007},"W=EE [kcal/h/kg] x 0.03",null,null,null,"Sampath et al 2009"]
[null,"Energy Expenditure",null,{"$f":"((46.2/31.2)*100)-100","v":48.076923076923094},"% increase in SKO/control"]
[]
[null,"Evaporative Cooling",null,{"$f":"49.5-23.7","v":25.8},"g/m2/h increase in SKO",null,null,{"$f":"D13*0.007","v":0.18060000000000001},"W lost in SKO (compared to control)",null,null,null,"this study"]
[null,"EC= g/m2/h",null,{"$f":"((49.5-23.7)/23.7)*100","v":108.86075949367088},"% increase in water loss"]
[{"$nulls":7},"Mice are same size but balding"]
[]
[]
[]
[]
[null,"DGAT1 KO"]
[]
[null,"POWER IN",null,"no change",{"$nulls":8},"Smith et al 2000"]
[null,"FOOD INTAKE"]
[]
[]
[]
[null,"POWER OUT/W",null,4.17,"kcal/h/kg","INCREASE in DGAT1 KO",null,{"$f":"D27*0.03","v":0.12509999999999999},"W=EE [kcal/h/kg] x 0.03",null,null,null,"Smith et al 2000"]
[null,"Energy Expenditure",null,22,"% increase in DGAT1 KO/control"]
[]
[null,"Evaporative Cooling",null,{"$f":"31-20.2","v":10.8},"g/m2/h increase in DGAT1 KO",null,null,{"$f":"D30*0.007","v":7.5600000000000001E-2},"W lost in DGAT1 KO (compared to control)",null,null,null,"this study"]
[null,"EC= g/m2/h",null,{"$f":"(D30/20.2)*100","v":53.46534653465347},"% increase in water loss"]
[{"$nulls":7},"Mice are same size but hair is thinner"]
[]
[]
[]
[]
[null,"Sdc1 KO"]
[]
[null,"POWER IN",null,"additional consumption of 0.24  g chow/day",null,null,null,3.3,"kCal/g chow",null,null,null,"Kasza et al 2014"]
[null,"FOOD INTAKE",null,"corrected for body weight (Sdc1KO 12% smaller)",null,null,null,{"$f":"H39*0.24","v":0.79199999999999993},"additional kCal consumed/day"]
[{"$nulls":7},{"$f":"H40/24","v":3.2999999999999995E-2},"additional kCal consumed/hour/mouse"]
[{"$nulls":7},{"$f":"H41/0.86","v":3.837209302325581E-2},"additional W consumed/SKO mouse"]
[]
[null,"POWER OUT/W",null,{"$f":"(21.01-18.13)","v":2.8800000000000026},"kcal/h/kg","INCREASE in Sdc1 KO",null,{"$f":"D44*0.03","v":8.6400000000000074E-2},"W=EE [kcal/h/kg] x 0.03",null,null,null,"Kasza et al 2014"]
[null,"Energy Expenditure",null,{"$f":"(D44/18.13)*100","v":15.885273028130186},"% increase in Sdc1 KO / control"]
[]
[null,"Evaporative Cooling",null,{"$f":"33.7-22.5","v":11.200000000000003},"g/m2/h increase in Sdc1 KO",null,null,{"$f":"D47*0.007","v":7.8400000000000025E-2},"W lost in Sdc1 KO (compared to control)",null,null,null,"this study"]
[null,"EC= g/m2/h",null,{"$f":"(D47/22.5)*100","v":49.777777777777793},"% increase in water loss"]
[{"$nulls":7},"Sdc1KO mice are 12% smaller, with wild type pelts"]
[]
[]
[]
[]
[null,"Agouti y (obese)"]
[]
[null,"POWER IN",null,"no change",{"$nulls":8},"Nelson et al 2011"]
[null,"FOOD INTAKE"]
[]
[]
[]
[null,"POWER OUT/W",null,{"$f":"(15.54-15.2)","v":0.33999999999999986},"kcal/h/kg","DECREASE in Agouti/y",null,{"$f":"D61*0.03","v":1.0199999999999996E-2},"W=EE [kcal/h/kg] x 0.03",null,null,null,"Nelson et al 2011"]
[null,"Energy Expenditure",null,{"$f":"(D61/15.54)*100","v":2.1879021879021869},"% increase in SKO/control"]
[]
[null,"Evaporative Cooling",null,{"$f":"23.4-17.01","v":6.389999999999997},"g/m2/h decrease in Agouti/y",null,null,null,"corrected for larger surface area of Agouti/y mouse",null,null,null,"this study"]
[null,"EC= g/m2/h",null,{"$f":"(D64/23.4)*100","v":27.307692307692292},"% decrease of EC/area of skin in Ag/y mice",null,null,null,"0.0105 surface area of 21g mouse + limbs/ears"]
[{"$nulls":8},"0.0130 surface area of 27 g mouse + limbs/ears"]
[]
[{"$nulls":7},{"$f":"23.4*0.0105*0.667","v":0.1638819},"W lost in control mice"]
[{"$nulls":7},{"$f":"17*0.013*0.667","v":0.14740700000000001},"W lost in Agouti/y mice"]
[{"$nulls":7},{"$f":"H68-H69","v":1.6474899999999987E-2},"W not lost to evaporative cooling in Agouti/y mice (compared to control)"]